bitfinex/quotes_SOLUSD_20251013
["timestamp","ask_amount","ask_price","bid_price","bid_amount"]
[1760343067277,0.09433582,197.31,197.24,0.7]
[1760343067458,0.09433582,197.31,197.24,215.2]
[1760343067664,0.09433582,197.31,197.25,0.7]
[1760343067868,0.09433582,197.31,197.25,134.8]
[1760343068052,0.09433582,197.31,197.26,0.7]
[1760343068259,0.09433582,197.31,197.27,17.74218076]
[1760343068458,1e-08,197.31,197.28,0.7]
[1760343069683,0.10783452,197.34,197.29,10.87647521]
[1760343069857,0.10783452,197.34,197.3,0.7]
[1760343070277,0.10783452,197.34,197.31,17.73858395]
[1760343070461,1e-08,197.34,197.32,0.7]
[1760343071087,1e-08,197.35,197.32,0.7]
[1760343071474,1e-08,197.35,197.33,0.7]
[1760343071980,1e-08,197.35,197.34,0.7]
[1760343072500,1e-08,197.35,197.34,5.76739637]
[1760343073058,0.10782747,197.35,197.34,5.76739637]
[1760343074576,0.10782746,197.35,197.34,5.76739637]
[1760343076882,0.2053607,197.36,197.34,5.76739637]
[1760343077058,0.10219179,197.38,197.35,0.67]
[1760343077979,0.09848517,197.42,197.36,10.87647521]
[1760343078157,0.09848517,197.42,197.37,1.17666261]
[1760343078158,1e-08,197.4,197.37,1.17666261]
[1760343078360,1e-08,197.4,197.38,0.67]
[1760343078675,1e-08,197.41,197.39,5.06611277]
[1760343078857,1e-08,197.41,197.4,0.67]
[1760343079061,0.10688321,197.43,197.4,0.67]
[1760343079262,0.10688321,197.43,197.41,0.67]
[1760343079481,0.10688321,197.43,197.42,0.67]
[1760343079686,0.10688321,197.43,197.39,18.40139469]
[1760343082882,0.10688321,197.43,197.39,17.73139469]
[1760343083087,10.39892775,197.43,197.39,17.73139469]
[1760343083668,0.10688321,197.43,197.39,17.73139469]
[1760343083880,0.72,197.42,197.39,12.66528192]
[1760343084485,31.67647521,197.39,197.3,5.06842372]
[1760343084682,9.57204454,197.34,197.3,5.06842372]
[1760343084869,9.57204454,197.35,197.3,5.06842372]
[1760343085074,10.29204454,197.35,197.3,5.06842372]
[1760343085582,9.57204454,197.34,197.3,17.73948302]
[1760343085892,10.29204454,197.34,197.3,17.73948302]
[1760343086272,9.57204454,197.35,197.3,17.73948302]
[1760343086590,20.8,197.36,197.31,0.67]
[1760343087087,10.29204454,197.35,197.17,80.4]
[1760343087294,19.99999999,197.06,197.0,0.2]
[1760343087591,14.0192229,197.23,197.0,0.2]
[1760343087592,19.99999999,197.01,197.0,0.2]
[1760343087772,19.99999999,197.08,197.0,0.2]
[1760343087977,19.99999999,197.04,197.0,0.2]
[1760343088177,19.99999999,197.03,197.0,18.63642419]
[1760343088391,19.99999999,197.03,197.01,0.67]
[1760343088575,19.99999999,197.04,197.01,0.67]
[1760343088780,19.99999999,197.03,197.01,0.67]
[1760343088978,29.57204453,197.07,197.01,0.67]
[1760343089177,19.99999999,197.04,197.01,0.67]
[1760343089591,19.99999999,197.04,197.02,17.76469392]
[1760343090191,19.99999999,197.03,197.02,17.76469392]
[1760343090403,19.99999999,197.04,197.02,17.76469392]
[1760343090713,19.99999999,197.04,196.66,35.25566401]
[1760343090714,10.29204454,197.03,196.93,0.2]
[1760343090876,30.37204454,196.94,196.93,0.2]
[1760343091197,41.24851975,196.94,196.93,0.2]
[1760343091500,41.95851975,196.94,196.93,0.2]
[1760343091678,10.87647521,196.89,196.83,5.0803717]
[1760343091989,32.38647521,196.94,196.93,5.48]
[1760343092386,0.71,196.94,196.93,5.48]
[1760343092590,20.8,196.94,196.93,5.48]
[1760343093093,30.47138291,196.94,196.93,5.48]
[1760343093779,30.47138291,196.94,196.93,10.55794647]
[1760343094098,41.95785812,196.94,196.93,5.48]
[1760343095096,42.46557543,196.94,196.93,5.48]
[1760343095292,9.57204454,196.89,196.88,0.2]
[1760343095504,9.57204454,196.89,196.88,5.68]
[1760343095682,10.68976185,196.89,196.88,5.68]
[1760343095885,10.68976185,196.89,196.88,5.58]
[1760343096598,21.05851975,196.89,196.88,5.58]
[1760343097080,21.56623706,196.89,196.88,5.58]
[1760343098283,31.67647521,196.85,196.81,5.48]
[1760343098501,41.24851975,196.82,196.81,10.56095241]
[1760343098687,20.95851975,196.82,196.81,5.48]
[1760343099685,21.46623706,196.82,196.81,5.48]
[1760343100190,42.26623706,196.82,196.81,5.48]
[1760343100392,21.46623706,196.82,196.81,5.48]
[1760343100607,11.38419252,196.82,196.81,5.48]
[1760343100818,20.95623706,196.82,196.81,5.48]
[1760343101305,0.51,196.9,196.81,11.22104262]
[1760343101477,9.57204454,196.82,196.81,23.26364919]
[1760343101676,9.57204454,196.84,196.81,23.26364919]
[1760343101881,20.8,196.82,196.81,23.26364919]
[1760343103888,20.8,196.82,196.81,23.92364919]
[1760343104888,20.8,196.86,196.81,23.92364919]
[1760343105086,20.44851975,196.89,196.82,0.66]
[1760343105396,20.8,196.86,196.82,0.66]
[1760343106006,20.8,196.86,196.81,48.66886233]
[1760343106207,9.57204454,196.85,196.84,5.08026823]
[1760343106507,0.51,196.91,196.84,17.78093882]
[1760343106695,9.57204454,196.88,196.85,0.72]
[1760343107915,0.1029688,196.95,196.84,17.78093882]
[1760343107916,0.1029688,196.95,196.86,0.72]
[1760343108209,30.47138291,196.94,196.87,17.77822928]
[1760343108387,0.09933837,196.94,196.88,0.72]
[1760343108790,9.67138291,196.94,196.88,0.72]
[1760343108989,9.57204454,196.92,196.88,0.72]
[1760343109714,10.87647521,196.89,196.87,5.07949408]
[1760343109897,20.44851975,196.89,196.87,5.07949408]
[1760343110211,20.44851975,196.89,196.84,12.70042946]
[1760343110514,20.8,196.86,196.84,12.70042946]
[1760343112098,30.37204454,196.86,196.84,12.70042946]
[1760343112298,30.37204454,196.86,196.83,5.08052634]
[1760343112493,20.8,196.82,196.81,10.56093089]
[1760343112798,41.24851975,196.82,196.81,5.48]
[1760343113000,41.35919674,196.82,196.81,5.48]
[1760343114215,0.11067699,196.82,196.81,6.14]
[1760343114400,20.91067699,196.82,196.81,11.22104262]
[1760343114587,0.11067699,196.82,196.81,11.22104262]
[1760343114794,1e-08,196.82,196.81,11.22104262]
[1760343115513,1e-08,196.82,196.81,10.56104262]
[1760343116815,9.57204455,196.82,196.81,10.56104262]
[1760343117718,9.57204455,196.82,196.81,5.48]
[1760343118019,9.57204455,196.82,196.81,10.56104262]
[1760343118517,1e-08,196.82,196.81,10.56104262]
[1760343118711,1e-08,196.82,196.81,11.22104262]
[1760343118918,1e-08,196.82,196.81,10.56104262]
[1760343119914,1e-08,196.82,196.81,11.22104262]
[1760343121126,1e-08,196.83,196.81,11.22104262]
[1760343121424,0.10989269,196.84,196.81,11.22104262]
[1760343121425,1e-08,196.84,196.82,0.66]
[1760343121601,1e-08,196.85,196.82,0.66]
[1760343122225,1e-08,196.85,196.81,23.26364919]
[1760343122408,1e-08,196.85,196.83,0.66]
[1760343122617,20.80000001,196.85,196.84,5.08026823]
[1760343124321,27.2495546,196.85,196.82,5.08056628]
[1760343124523,27.24955459,196.84,196.82,5.08056628]
[1760343125100,17.3260298,196.83,196.81,5.48]
[1760343125302,17.3260298,196.82,196.81,5.48]
[1760343125503,11.38419252,196.82,196.81,5.48]
[1760343125701,1e-08,196.85,196.81,11.22104262]
[1760343125934,1e-08,196.85,196.81,23.92364919]
[1760343126107,20.8,196.83,196.81,23.92364919]
[1760343126310,20.8,196.83,196.81,23.26364919]
[1760343126835,20.8,196.83,196.81,10.56104262]
[1760343127037,17.83374711,196.82,196.81,5.48]
[1760343127324,18.34374711,196.82,196.81,5.48]
[1760343128530,29.87408617,196.82,196.81,5.48]
[1760343128725,23.42453158,196.82,196.81,5.48]
[1760343128922,29.87408617,196.82,196.81,5.48]
[1760343129122,44.57558439,196.8,196.79,0.2]
[1760343129524,45.08558439,196.8,196.79,0.2]
[1760343130216,31.67647521,196.8,196.79,0.2]
[1760343130424,38.1260298,196.8,196.79,0.2]
[1760343131425,38.63374711,196.8,196.79,0.2]
[1760343132427,38.6360298,196.8,196.79,0.2]
[1760343132625,39.14374711,196.8,196.79,0.2]
[1760343133020,39.23570285,196.8,196.79,0.2]
[1760343133615,38.72570285,196.8,196.79,0.2]
[1760343134523,44.31700366,196.8,196.79,0.2]
[1760343136532,32.27614826,196.8,196.79,0.2]
[1760343136716,38.72570285,196.8,196.79,0.2]
[1760343137134,45.68525744,196.8,196.79,0.2]
[1760343137431,50.76655825,196.8,196.79,0.2]
[1760343137734,31.67647521,196.76,196.73,0.2]
[1760343137939,17.3260298,196.74,196.73,0.2]
[1760343138839,17.8360298,196.74,196.73,0.2]
[1760343139027,17.3260298,196.74,196.73,0.2]
[1760343141957,0.50771731,196.76,196.73,5.97310882]
[1760343142122,6.44955459,196.76,196.74,0.69]
[1760343142321,17.3260298,196.76,196.75,0.69]
[1760343142533,0.09195574,196.8,196.75,0.69]
[1760343142735,17.3260298,196.77,196.76,0.69]
[1760343143143,0.09195574,196.8,196.76,0.69]
[1760343143331,17.3260298,196.78,196.77,0.69]
[1760343143644,38.1260298,196.78,196.77,0.69]
[1760343143821,17.3260298,196.78,196.77,5.77207551]
[1760343144549,10.87647521,196.78,196.77,5.77207551]
[1760343144847,17.3260298,196.78,196.77,5.77207551]
[1760343145145,17.3260298,196.78,196.77,5.08207551]
[1760343145842,31.67647521,196.74,196.73,0.2]
[1760343146043,38.1260298,196.74,196.73,0.2]
[1760343146223,38.63374711,196.74,196.73,0.2]
[1760343149232,32.18419252,196.74,196.73,0.2]
[1760343149425,38.63374711,196.74,196.73,0.2]
[1760343149621,38.63374711,196.74,196.73,0.89]
[1760343150136,38.63374711,196.74,196.73,0.2]
[1760343150441,10.87647521,196.76,196.73,5.97310882]
[1760343150646,10.87647521,196.76,196.74,0.69]
[1760343151143,20.8,196.74,196.73,17.99088089]
[1760343151534,20.8,196.74,196.73,18.68088089]
[1760343152142,17.3260298,196.74,196.73,0.2]
[1760343152643,10.87647521,196.74,196.73,0.87]
[1760343153031,0.09308614,196.74,196.73,5.95310882]
[1760343153947,0.09922236,196.75,196.73,5.95310882]
[1760343154128,0.09922236,196.75,196.74,0.67]
[1760343154330,1e-08,196.75,196.74,0.67]
[1760343154940,1e-08,196.76,196.74,0.67]
[1760343155149,0.10530275,196.81,196.74,0.67]
[1760343155344,1e-08,196.8,196.74,0.67]
[1760343155544,6.44955459,196.86,196.74,0.67]
[1760343155931,6.44955459,196.85,196.74,0.67]
[1760343156143,27.24955459,196.85,196.75,17.78907242]
[1760343156341,1e-08,196.82,196.76,0.67]
[1760343158142,1e-08,196.82,196.77,17.7872643]
[1760343158337,0.50771731,196.98,196.78,10.87647521]
[1760343158645,20.8,196.89,196.79,0.67]
[1760343158842,6.44955459,196.93,196.79,0.67]
[1760343159046,6.44955459,196.94,196.79,0.67]
[1760343159544,10.87647521,196.96,196.79,0.67]
[1760343159745,6.95955459,197.04,196.85,20.8]
[1760343160049,6.44955459,197.03,196.86,11.54647521]
[1760343160253,6.44955459,197.02,196.88,10.87647521]
[1760343160453,20.8,196.99,196.89,0.67]
[1760343160747,6.44955459,197.02,196.89,0.67]
[1760343161143,20.8,196.99,196.89,0.67]
[1760343161348,6.44955459,197.02,196.89,0.67]
[1760343161956,20.8,196.99,196.89,0.67]
[1760343162152,6.44955459,197.01,196.9,43.16912137]
[1760343162335,6.44955459,197.01,196.91,0.67]
[1760343162646,6.44955459,197.05,196.91,0.67]
[1760343162843,6.44955459,197.06,196.92,31.67647521]
[1760343163044,6.44955459,197.06,196.93,0.67]
[1760343163250,27.24955459,197.06,196.93,0.67]
[1760343163446,6.44955459,197.05,196.93,0.67]
[1760343163834,20.8,197.05,196.93,0.67]
[1760343164039,6.44955459,197.06,196.94,43.1603534]
[1760343164351,20.8,197.05,196.95,0.67]
[1760343164862,27.24955459,197.05,196.95,0.67]
[1760343165236,6.44955459,197.04,196.95,0.67]
[1760343165433,6.44955459,197.01,196.95,0.67]
[1760343165949,20.8,197.02,196.95,0.67]
[1760343166151,20.8,197.0,196.96,17.7701056]
[1760343166352,20.8,197.0,196.97,0.67]
[1760343167349,0.50771731,197.08,196.98,0.69]
[1760343167552,6.44955459,197.06,196.98,0.69]
[1760343167745,6.44955459,197.07,196.98,0.69]
[1760343167946,20.8,197.04,196.98,0.69]
[1760343168255,20.8,197.04,196.99,17.76739935]
[1760343168456,20.8,197.04,196.99,18.43739935]
[1760343170944,6.44955459,197.02,196.99,17.76739935]
[1760343171171,17.8360298,197.03,196.99,17.76739935]
[1760343171979,20.8,197.0,196.96,25.38586515]
[1760343172268,20.8,196.99,196.96,25.38586515]
[1760343172787,0.51,196.99,196.95,17.77100787]
[1760343172943,27.24955459,197.0,196.95,17.77100787]
[1760343172944,0.09739878,196.97,196.95,17.77100787]
[1760343173255,0.09739878,196.97,196.96,0.67]
[1760343174153,0.10977562,197.01,196.96,18.4401056]
[1760343174353,0.10977562,197.01,196.97,0.67]
[1760343174773,0.10977562,197.01,196.98,0.67]
[1760343175067,1e-08,197.01,196.98,0.67]
[1760343175451,1e-08,197.02,196.98,0.67]
[1760343175650,0.1,197.09,196.98,0.67]
[1760343175851,6.95955459,197.07,196.98,0.67]
[1760343176069,0.51,197.07,196.99,17.76739935]
[1760343176271,6.95955459,197.07,196.99,17.76739935]
[1760343176851,27.75955459,197.07,196.99,18.43739935]
[1760343177051,6.56112777,197.06,196.99,43.81939843]
[1760343177472,6.44955459,197.05,196.99,43.81939843]
[1760343178555,6.43763341,197.05,196.99,43.81939843]
[1760343179477,0.11157318,197.06,197.0,7.10763341]
[1760343179683,6.54920659,197.06,197.0,0.67]
[1760343180381,0.11157318,197.06,197.0,0.67]
[1760343180959,6.54920659,197.06,197.01,17.76559565]
[1760343181159,0.11157318,197.06,197.01,18.43559565]
[1760343181471,6.43763341,197.05,197.01,17.76559565]
[1760343181662,6.94763341,197.05,197.01,17.76559565]
[1760343182062,6.43763341,197.05,197.01,17.76559565]
[1760343182370,6.43763341,197.03,197.01,17.76559565]
[1760343182579,10.98804839,197.06,197.02,0.67]
[1760343182875,0.11157318,197.06,197.04,6.43763341]
[1760343183075,0.11157318,197.06,197.05,5.74485409]
[1760343183277,0.11157318,197.06,197.05,12.1824875]
[1760343183476,1e-08,197.06,197.05,12.1824875]
[1760343183866,1e-08,197.06,197.05,5.74485409]
[1760343184477,1e-08,197.06,197.05,12.1824875]
[1760343184777,1e-08,197.06,197.05,11.5124875]
[1760343184988,0.51000001,197.06,197.03,17.7635205]
[1760343185156,1e-08,197.06,197.03,17.7635205]
[1760343186690,20.8,197.04,197.03,5.07536923]
[1760343187162,20.8,197.04,197.02,5.07562683]
[1760343187668,1e-08,197.06,197.03,10.25869666]
[1760343187863,1e-08,197.06,197.05,9.58869666]
[1760343188264,1e-08,197.06,197.05,10.25869666]
[1760343189075,1e-08,197.06,197.05,15.33355075]
[1760343189291,1e-08,197.06,197.05,95.73355075]
[1760343189464,1e-08,197.09,197.08,9.58869666]
[1760343189886,0.51,197.2,197.08,10.25869666]
[1760343190065,20.8,197.15,197.12,9.58869666]
[1760343190265,0.51,197.2,197.05,232.26198933]
[1760343190266,32.18647521,197.14,197.07,9.58869666]
[1760343190492,41.77517187,197.14,197.07,10.25869666]
[1760343190867,20.8,197.09,197.05,17.76198933]
[1760343191066,30.89869666,197.09,197.05,17.76198933]
[1760343191267,30.38869666,197.09,197.02,28.02339058]
[1760343191795,9.58869666,197.07,197.02,17.76469392]
[1760343192167,9.58869666,197.07,197.02,18.43469392]
[1760343192376,30.38869666,197.08,197.02,18.43469392]
[1760343192668,20.8,197.08,197.02,28.02339058]
[1760343192871,30.38869666,197.08,197.02,18.43469392]
[1760343193084,0.098017,197.03,197.02,17.76469392]
[1760343193267,0.098017,197.03,197.02,12.68906709]
[1760343194285,0.09966114,197.04,197.02,22.94776375]
[1760343194474,0.09966114,197.04,197.03,10.25869666]
[1760343194691,0.09966114,197.04,197.03,0.67]
[1760343194898,0.09966114,197.04,197.03,10.25869666]
[1760343195394,0.09966114,197.04,197.03,15.33406589]
[1760343196187,0.10660734,197.05,197.03,15.33406589]
[1760343196385,0.10660734,197.05,197.04,10.25869666]
[1760343197609,0.10773627,197.07,197.04,28.02158744]
[1760343197777,0.09790016,197.12,197.06,9.58869666]
[1760343197975,0.09790016,197.12,197.11,9.58869666]
[1760343198187,9.58869666,197.18,197.11,10.28869666]
[1760343198383,20.46517187,197.19,197.13,9.58869666]
[1760343198774,20.8,197.16,197.13,9.58869666]
[1760343198976,20.46517187,197.19,197.04,68.5140073]
[1760343198977,10.87647521,197.23,197.14,0.7]
[1760343199188,0.1,197.25,197.19,9.58869666]
[1760343199479,0.1,197.25,197.12,9.58869666]
[1760343199480,0.1,197.25,197.22,9.58869666]
[1760343199787,0.1,197.25,197.2,0.7]
[1760343199788,0.1,197.25,197.21,27.33627537]
[1760343199989,20.8,197.23,197.21,5.07073677]
[1760343200174,10.97647521,197.25,197.21,5.07073677]
[1760343200374,20.8,197.22,197.21,5.07073677]
[1760343200571,30.38869666,197.22,197.19,5.07101804]
[1760343201278,10.87647521,197.23,197.19,17.74914573]
[1760343202105,0.1,197.25,197.19,28.03784239]
[1760343202308,20.8,197.22,197.21,9.58869666]
[1760343202514,20.8,197.22,197.2,9.58869666]
[1760343202687,20.8,197.24,197.2,9.58869666]
[1760343203008,20.8,197.24,197.19,17.74914573]
[1760343203009,20.8,197.24,197.22,9.58869666]
[1760343203305,0.1,197.25,197.22,10.28869666]
[1760343203711,20.9,197.25,197.22,10.28869666]
[1760343204075,0.1,197.25,197.23,15.35891924]
[1760343204399,0.1,197.25,197.24,0.7]
[1760343204585,0.1,197.25,197.24,10.28869666]
[1760343204788,0.1,197.25,197.23,5.07022258]
[1760343204990,0.1,197.25,197.23,14.65891924]
[1760343205302,0.1,197.25,197.23,5.07022258]
[1760343206175,0.1,197.25,197.23,9.58869666]
[1760343207407,0.1,197.25,197.24,5.06996552]
[1760343208884,0.1,197.25,197.24,15.35866218]
[1760343210312,0.1,197.25,197.24,5.06996552]
[1760343211620,0.1,197.25,197.23,5.07022258]
[1760343211919,0.1,197.25,197.23,5.77022258]
[1760343212605,0.1,197.25,197.23,5.07022258]
[1760343213130,0.10459288,197.24,197.23,5.07022258]
[1760343213508,0.10459288,197.24,197.23,10.28869666]
[1760343214300,0.10459288,197.24,197.22,17.74645193]
[1760343214527,0.10459288,197.24,197.23,10.28869666]
[1760343215417,0.21039479,197.25,197.24,9.58869666]
[1760343215613,0.21039479,197.25,197.24,15.35866218]
[1760343216504,1e-08,197.25,197.24,15.35866218]
[1760343216702,1e-08,197.27,197.24,28.03357599]
[1760343216915,1e-08,197.27,197.26,9.58869666]
[1760343217498,1e-08,197.27,197.26,14.65814814]
[1760343217698,1e-08,197.27,197.26,15.35814814]
[1760343220610,1e-08,197.27,197.26,5.06945148]
[1760343221715,0.51000001,197.27,197.26,5.06945148]
[1760343222022,1e-08,197.27,197.26,5.06945148]
[1760343223001,1e-08,197.27,197.25,5.06970849]
[1760343225014,1e-08,197.27,197.26,9.58869666]
[1760343225208,1e-08,197.27,197.25,15.32840515]
[1760343225413,1e-08,197.27,197.25,14.65840515]
[1760343226801,1e-08,197.27,197.26,10.24869666]
[1760343227910,0.10644208,197.3,197.26,10.24869666]
[1760343228208,1e-08,197.31,197.29,9.58869666]
[1760343228529,10.87647521,197.39,197.3,9.58869666]
[1760343228822,10.87647521,197.39,197.32,9.58869666]
[1760343229197,20.8,197.36,197.32,10.24869666]
[1760343229400,11.38647521,197.39,197.32,10.24869666]
[1760343229816,20.8,197.36,197.32,10.24869666]
[1760343230228,20.8,197.36,197.32,15.31660665]
[1760343230421,1e-08,197.33,197.32,15.31660665]
[1760343230810,10.29869666,197.45,197.32,53.32593159]
[1760343231014,20.8,197.41,197.39,9.58869666]
[1760343231330,20.8,197.41,197.38,9.58869666]
[1760343231522,10.87647521,197.44,197.39,10.24869666]
[1760343232107,11.38647521,197.44,197.39,9.58869666]
[1760343232430,11.38647521,197.44,197.4,5.06585612]
[1760343232939,9.78869666,197.45,197.43,9.58869666]
[1760343232940,0.2,197.45,197.43,9.58869666]
[1760343233106,0.30996249,197.45,197.44,9.58869666]
[1760343234238,0.30996249,197.45,197.43,10.24869666]
[1760343234645,0.30996249,197.45,197.44,5.06482982]
[1760343235628,0.30996249,197.45,197.44,14.65352648]
[1760343235843,0.30996249,197.45,197.44,5.06482982]
[1760343236013,0.30996249,197.45,197.44,14.65352648]
[1760343236218,0.30996249,197.45,197.44,15.31352648]
[1760343237343,0.30996249,197.45,197.44,5.72482982]
[1760343237659,0.30996249,197.45,197.44,15.31352648]
[1760343237846,1e-08,197.48,197.44,27.97560103]
[1760343238015,1e-08,197.48,197.47,9.58869666]
[1760343238215,1e-08,197.49,197.47,9.58869666]
[1760343238441,1e-08,197.49,197.48,10.24869666]
[1760343238653,1e-08,197.49,197.48,15.31250058]
[1760343239115,1e-08,197.49,197.48,5.72380392]
[1760343239320,1e-08,197.49,197.48,15.31250058]
[1760343240923,1e-08,197.49,197.48,5.72380392]
[1760343241259,1e-08,197.49,197.48,15.31250058]
[1760343242140,1e-08,197.49,197.48,5.72380392]
[1760343242331,1e-08,197.49,197.48,15.31250058]
[1760343243522,1e-08,197.49,197.48,5.06380392]
[1760343245422,1e-08,197.49,197.48,7.06700677]
[1760343246542,1e-08,197.49,197.48,0.66]
[1760343246739,1e-08,197.49,197.48,7.06700677]
[1760343246937,1e-08,197.49,197.47,5.06406036]
[1760343247145,0.68000001,197.49,197.47,5.06406036]
[1760343247340,1e-08,197.49,197.47,5.06406036]
[1760343247531,1e-08,197.49,197.46,12.66056245]
[1760343247745,1e-08,197.49,197.47,7.06700677]
[1760343247941,1e-08,197.49,197.45,5.0645733]
[1760343247942,27.88700677,197.48,197.45,5.0645733]
[1760343248134,6.40700677,197.46,197.45,5.0645733]
[1760343248344,6.40700677,197.46,197.37,0.66]
[1760343248547,7.08700677,197.45,197.38,6.40700677]
[1760343249448,7.08700677,197.45,197.38,17.73229302]
[1760343249765,0.68,197.45,197.38,24.13929979]
[1760343249945,27.20700677,197.45,197.39,7.06700677]
[1760343250142,6.40700677,197.47,197.41,6.40700677]
[1760343250337,1e-08,197.49,197.42,6.40700677]
[1760343250338,27.20700677,197.48,197.42,6.40700677]
[1760343250535,27.88700677,197.48,197.42,6.40700677]
[1760343251049,6.40700677,197.47,197.41,7.06700677]
[1760343251260,21.48,197.48,197.43,6.40700677]
[1760343251446,0.68,197.47,197.44,5.06482982]
[1760343252542,0.68,197.47,197.42,24.13528771]
[1760343253060,0.10957267,197.43,197.42,17.72828094]
[1760343253957,0.10957267,197.43,197.42,18.38828094]
[1760343254145,0.10957267,197.43,197.42,24.79528771]
[1760343255154,0.10957267,197.43,197.42,18.38828094]
[1760343255359,0.10957267,197.43,197.42,17.72828094]
[1760343256150,0.10957267,197.43,197.42,24.79528771]
[1760343256347,0.10282645,197.47,197.43,6.40700677]
[1760343256554,45.29738058,197.65,197.47,5.06406036]
[1760343256555,0.71,197.57,197.47,5.06406036]
[1760343256780,7.21700677,197.55,197.47,11.47106713]
[1760343256940,7.21700677,197.55,197.47,12.13106713]
[1760343257137,0.81,197.55,197.47,12.13106713]
[1760343257440,1e-08,197.49,197.47,5.72406036]
[1760343257773,1e-08,197.49,197.48,0.66]
[1760343258243,1e-08,197.5,197.48,11.53647521]
[1760343258556,1e-08,197.5,197.49,12.13055429]
[1760343259343,1e-08,197.51,197.49,12.13055429]
[1760343259541,1e-08,197.51,197.5,7.06700677]
[1760343259949,1e-08,197.51,197.5,0.66]
[1760343260169,1e-08,197.51,197.5,7.06700677]
[1760343260550,1e-08,197.51,197.5,5.72329113]
[1760343260754,1e-08,197.51,197.5,12.1302979]
[1760343263446,1e-08,197.51,197.5,11.4702979]
[1760343264169,1e-08,197.51,197.5,12.1302979]
[1760343265365,1e-08,197.51,197.5,8.2850599]
[1760343265763,3.27176878,197.51,197.44,12.66157656]
[1760343265967,3.27176878,197.51,197.35,25.45999999]
[1760343265968,2.56176877,197.46,197.42,5.06534292]
[1760343266264,2.56176877,197.44,197.42,5.06534292]
[1760343266645,3.27176877,197.45,197.42,5.06534292]
[1760343266840,20.8,197.48,197.39,5.06611277]
[1760343266841,3.27176877,197.44,197.39,5.06611277]
[1760343267071,3.27176877,197.44,197.39,17.73139469]
[1760343267270,0.71,197.43,197.39,5.06611277]
[1760343267464,20.8,197.48,197.37,17.73319146]
[1760343267465,7.1231874,197.42,197.37,17.73319146]
[1760343267765,6.4131874,197.43,197.37,24.14637886]
[1760343267968,7.1231874,197.43,197.37,24.14637886]
[1760343268762,0.71,197.43,197.37,24.14637886]
[1760343269150,7.1231874,197.43,197.37,24.14637886]
[1760343269870,0.71,197.43,197.37,24.14637886]
[1760343270055,7.1231874,197.43,197.37,24.14637886]
[1760343270768,6.4131874,197.42,197.37,12.66656533]
[1760343270970,20.8,197.46,197.4,6.4131874]
[1760343271181,27.2131874,197.46,197.4,7.0731874]
[1760343271476,6.4131874,197.48,197.42,6.4131874]
[1760343271668,20.8,197.45,197.41,0.66]
[1760343271974,20.8,197.45,197.41,6.4131874]
[1760343272266,0.71,197.48,197.41,0.66]
[1760343272267,6.4131874,197.46,197.41,0.66]
[1760343272468,0.71,197.46,197.41,7.0731874]
[1760343272850,21.51,197.48,197.42,17.72870022]
[1760343273065,0.11042613,197.43,197.42,17.72870022]
[1760343275184,0.10236969,197.44,197.42,17.72870022]
[1760343275185,0.10236969,197.44,197.42,24.80188762]
[1760343275375,0.10352921,197.45,197.43,7.0731874]
[1760343275671,0.11085871,197.47,197.44,6.4131874]
[1760343275859,1e-08,197.48,197.46,6.4131874]
[1760343276058,1e-08,197.48,197.47,6.4131874]
[1760343276476,1e-08,197.48,197.47,7.0731874]
[1760343277057,1e-08,197.48,197.47,5.72406036]
[1760343277372,0.11006165,197.51,197.47,24.79739866]
[1760343277566,0.2,197.52,197.5,6.4131874]
[1760343277762,0.2,197.52,197.51,6.4131874]
[1760343277958,0.2,197.52,197.51,7.0731874]
[1760343279059,0.2,197.52,197.51,12.13622218]
[1760343279958,0.2,197.52,197.51,5.06303478]
[1760343280556,0.2,197.52,197.51,11.47622218]
[1760343280971,0.2,197.52,197.51,12.13622218]
[1760343282186,0.2,197.52,197.51,5.72303478]
[1760343282481,0.2,197.52,197.51,12.13622218]
[1760343284872,0.2,197.52,197.51,5.06303478]
[1760343286077,0.2,197.52,197.51,11.47622218]
[1760343289169,0.89,197.52,197.46,17.72479643]
[1760343289370,0.69,197.51,197.46,17.72479643]
[1760343289565,2.56303178,197.47,197.44,5.06457925]